bitfinex/quotes_ETHUSD_20250331
["timestamp","ask_amount","ask_price","bid_price","bid_amount"]
[1743419528811,14.26702898,1803.9,1803.6,1.6157379]
[1743419528979,5.54367,1803.9,1803.6,7.1601179]
[1743419529178,8.72329898,1803.9,1803.6,7.1601179]
[1743419529379,8.72329898,1803.9,1803.7,0.71601179]
[1743419529578,5.54367,1803.9,1803.7,0.71601179]
[1743419529787,11.08742,1803.9,1803.7,0.71601179]
[1743419529985,14.26704898,1803.9,1803.6,1.6157379]
[1743419530407,5.54385,1803.8,1803.7,0.33295784]
[1743419530775,8.72347898,1803.8,1803.6,1.6157379]
[1743419531007,8.72347898,1803.8,1803.7,0.33295784]
[1743419531376,5.54429,1803.7,1803.4,38.32073]
[1743419531584,5.54429,1803.7,1803.5,5.604]
[1743419532119,8.72391898,1803.7,1803.5,5.604]
[1743419533215,8.72348898,1803.8,1803.5,5.604]
[1743419533410,3.17962898,1803.7,1803.5,5.604]
[1743419533713,8.72348898,1803.8,1803.5,7.4930845]
[1743419533875,5.54361,1803.9,1803.5,7.4930845]
[1743419534073,8.72323898,1803.9,1803.6,6.30957]
[1743419534383,14.26693898,1803.9,1803.6,6.30957]
[1743419534597,8.72323898,1803.9,1803.6,6.30957]
[1743419534890,8.72323898,1803.9,1803.7,0.630957]
[1743419535294,8.72361898,1803.8,1803.5,23.2277845]
[1743419535490,3.17962898,1803.8,1803.5,28.7724245]
[1743419535903,8.72325898,1803.9,1803.6,5.59981867]
[1743419536108,8.72325898,1803.9,1803.6,11.08876]
[1743419536293,8.72327898,1803.9,1803.6,5.54438]
[1743419536495,14.26704898,1803.9,1803.6,2.32274645]
[1743419536691,8.72327898,1803.9,1803.6,7.86715645]
[1743419536893,8.72327898,1803.9,1803.6,2.32274645]
[1743419537083,14.26705898,1803.9,1803.6,2.32274645]
[1743419537480,5.54388,1803.8,1803.6,2.32274645]
[1743419538118,8.72327898,1803.9,1803.6,7.86705645]
[1743419538307,3.17962898,1803.9,1803.6,2.32274645]
[1743419538479,8.72321898,1803.9,1803.6,7.86711645]
[1743419539029,3.17962898,1803.9,1803.6,7.86710645]
[1743419539193,3.0,1804.0,1803.8,5.54363]
[1743419539393,3.0,1804.0,1803.7,7.16301165]
[1743419539721,3.0,1804.0,1803.8,5.54382]
[1743419540023,8.54334,1804.0,1803.7,7.16301165]
[1743419540175,3.0,1804.0,1803.8,5.54384]
[1743419540617,3.0,1804.0,1803.9,5.602]
[1743419540994,3.0,1804.1,1803.9,5.602]
[1743419541446,8.54294,1804.1,1803.9,5.602]
[1743419542004,5.54201,1804.4,1804.1,5.54288]
[1743419542005,11.08422,1804.4,1804.1,5.54288]
[1743419542199,9.9184973,1804.5,1804.1,5.54288]
[1743419542404,3.0,1804.3,1804.1,5.54281]
[1743419542741,6.30987,1804.7,1804.2,0.8304]
[1743419542912,5.54157,1804.6,1804.3,11.14416]
[1743419543098,8.72119898,1804.6,1804.3,11.14416]
[1743419543305,3.0,1804.5,1804.3,11.14416]
[1743419544201,3.0,1804.5,1804.3,5.602]
[1743419544621,8.54195,1804.5,1804.3,5.602]
[1743419545435,3.0,1804.5,1804.4,0.30350301]
[1743419545612,3.17962898,1804.6,1804.4,0.30350301]
[1743419546018,8.72076898,1804.7,1804.4,0.30350301]
[1743419546349,14.26214898,1804.7,1804.4,0.30350301]
[1743419546643,8.72103898,1804.6,1804.4,0.30350301]
[1743419547410,3.17962898,1804.5,1804.4,0.30350301]
[1743419548348,13.94829788,1804.5,1804.4,0.30350301]
[1743419548644,14.49829788,1804.5,1804.4,0.30350301]
[1743419548871,5.54293,1804.1,1803.9,10.19]
[1743419549158,5.54323,1804.0,1803.9,10.19]
[1743419549322,5.54323,1804.0,1803.8,5.6]
[1743419549966,15.04637898,1804.1,1803.8,5.6]
[1743419550158,5.54333,1804.0,1803.8,5.6]
[1743419550459,11.30779688,1804.1,1803.8,5.6]
[1743419550664,11.30779688,1804.1,1803.8,11.1438]
[1743419550843,9.50315898,1804.1,1803.8,11.14382]
[1743419551166,8.72255898,1804.1,1803.8,11.14382]
[1743419551459,9.29397,1804.2,1803.8,11.14373]
[1743419551460,18.01645898,1804.2,1803.8,11.14373]
[1743419551836,18.01645898,1804.2,1803.8,16.68749]
[1743419552035,5.54339,1804.0,1803.7,5.54398]
[1743419552240,3.17962898,1804.0,1803.8,5.599]
[1743419552444,8.72257898,1804.1,1803.8,5.599]
[1743419552627,5.54341,1804.0,1803.8,5.599]
[1743419552828,8.72257898,1804.1,1803.8,5.599]
[1743419553543,14.26570898,1804.1,1803.8,5.599]
[1743419553852,5.54328,1804.0,1803.8,5.599]
[1743419554055,14.26579898,1804.1,1803.9,0.30159872]
[1743419554233,16.06750888,1804.1,1803.9,0.30159872]
[1743419554652,5.54323,1804.0,1803.9,0.30159872]
[1743419554968,10.52428888,1804.1,1803.9,0.30159872]
[1743419555130,8.72257898,1804.1,1803.9,0.30159872]
[1743419556162,3.17962898,1804.1,1803.9,1.06079872]
[1743419556326,3.17962898,1804.1,1803.9,6.60415872]
[1743419556530,3.17962898,1804.1,1803.9,0.30159872]
[1743419556757,8.72270898,1804.1,1803.9,0.30159872]
[1743419556957,14.26584898,1804.1,1803.9,0.30159872]
[1743419557228,15.99243388,1804.1,1803.9,0.30159872]
[1743419557602,5.54323,1804.0,1803.9,0.30159872]
[1743419557740,16.77519388,1804.1,1803.9,0.30159872]
[1743419557936,11.23199388,1804.1,1803.9,0.30159872]
[1743419558143,5.54323,1804.0,1803.9,0.30159872]
[1743419560963,7.22075239,1804.0,1803.9,0.30159872]
[1743419562669,14.72328137,1804.0,1803.9,0.30159872]
[1743419563054,5.54415,1803.7,1803.6,6.69962244]
[1743419563236,8.72377898,1803.7,1803.6,6.69962244]
[1743419564188,8.72377898,1803.7,1803.6,1.10162244]
[1743419564477,14.26816898,1803.7,1803.5,5.598]
[1743419564687,8.72377898,1803.7,1803.5,5.598]
[1743419565045,4.60639688,1803.7,1803.5,5.598]
[1743419565282,5.5442,1803.7,1803.5,5.598]
[1743419565477,3.17962898,1803.7,1803.5,11.14274]
[1743419565647,8.72394898,1803.7,1803.5,5.598]
[1743419566248,3.17962898,1803.7,1803.5,11.14276]
[1743419566481,8.54361,1803.9,1803.6,5.54424]
[1743419566666,3.0,1803.8,1803.6,5.59967928]
[1743419566872,0.7667,1804.0,1803.8,5.54385]
[1743419566873,3.17962898,1804.0,1803.8,5.54385]
[1743419567069,6.29923,1804.2,1803.8,5.54385]
[1743419567070,11.72255898,1804.1,1803.8,5.54385]
[1743419567241,3.17962898,1804.0,1803.7,22.0937]
[1743419567646,3.17962898,1803.9,1803.7,16.54956]
[1743419567848,3.17962898,1803.9,1803.7,16.54952]
[1743419568093,3.17962898,1803.9,1803.7,18.87089079]
[1743419568262,3.17962898,1803.9,1803.7,18.87087079]
[1743419568458,3.17962898,1804.0,1803.8,5.54373]
[1743419568672,3.17962898,1804.0,1803.7,12.51137079]
[1743419568873,3.17962898,1803.9,1803.7,15.73402]
[1743419569060,3.17962898,1803.9,1803.7,17.49854879]
[1743419569887,3.17962898,1803.9,1803.7,23.04255879]
[1743419570187,3.17962898,1804.3,1804.0,11.08618]
[1743419570399,8.72207898,1804.3,1804.1,5.597]
[1743419571386,3.17962898,1804.2,1804.1,5.597]
[1743419571592,8.72224898,1804.2,1804.1,5.597]
[1743419572477,8.72224898,1804.2,1803.9,5.54342]
[1743419572677,8.72224898,1804.2,1804.0,5.597]
[1743419573387,3.17962898,1804.2,1804.0,21.33023]
[1743419573587,3.17962898,1804.4,1804.1,6.32914]
[1743419573790,3.17962898,1804.6,1804.4,5.54189]
[1743419574010,8.72114898,1804.6,1804.3,5.54228]
[1743419574308,6.36112,1804.6,1804.4,5.596]
[1743419574474,3.17962898,1804.5,1804.4,5.596]
[1743419575190,8.72132898,1804.5,1804.4,5.596]
[1743419575409,8.72132898,1804.5,1804.4,5.89987472]
[1743419575613,3.07962898,1804.5,1804.4,5.89987472]
[1743419577370,8.62132898,1804.5,1804.4,5.89987472]
[1743419578671,3.07962898,1804.5,1804.4,5.89987472]
[1743419579366,8.62132898,1804.5,1804.4,5.89987472]
[1743419581677,0.1,1804.9,1804.5,5.54152]
[1743419581678,0.9252,1804.9,1804.5,5.54152]
[1743419581888,3.17962898,1804.8,1804.6,5.84211938]
[1743419582087,0.1,1804.9,1804.6,5.84211938]
[1743419582088,3.27962898,1804.9,1804.6,5.89752901]
[1743419582409,3.27962898,1804.9,1804.7,0.8273]
[1743419582410,0.1,1804.9,1804.7,0.8273]
[1743419582715,3.27962898,1804.9,1804.7,5.594]
[1743419582914,5.54106,1804.8,1804.7,5.594]
[1743419585678,8.82021898,1804.9,1804.7,5.594]
[1743419585880,3.27962898,1804.9,1804.7,5.594]
[1743419586077,3.27962898,1804.9,1804.7,11.13481]
[1743419586486,3.27962898,1804.9,1804.7,5.594]
[1743419587020,5.54078,1804.8,1804.7,5.594]
[1743419587640,3.17962898,1804.8,1804.7,5.594]
[1743419587822,3.27962898,1804.9,1804.7,5.594]
[1743419588313,0.1,1804.9,1804.7,5.594]
[1743419588510,5.64062,1804.9,1804.7,5.594]
[1743419589523,0.1,1804.9,1804.7,11.13498]
[1743419589725,0.1,1804.9,1804.7,7.339022]
[1743419589926,5.64059,1804.9,1804.7,5.594]
[1743419590430,5.64059,1804.9,1804.8,0.2965386]
[1743419591910,0.1,1804.9,1804.8,0.2965386]
[1743419592119,5.64047,1804.9,1804.8,0.2965386]
[1743419593430,8.82009898,1804.9,1804.8,0.2965386]
[1743419593591,14.31312788,1804.9,1804.8,0.2965386]
[1743419593796,14.31312788,1804.9,1804.5,6.4118]
[1743419593797,5.54108,1804.7,1804.5,6.4118]
[1743419594004,5.54109,1804.7,1804.5,0.8208]
[1743419594305,5.54108,1804.7,1804.6,5.591]
[1743419598551,5.54139,1804.6,1804.3,0.7669]
[1743419598852,5.54139,1804.6,1804.5,5.59]
[1743419599010,3.8243,1804.5,1804.1,32.7863]
[1743419599316,5.54245,1804.3,1804.1,32.7863]
[1743419599512,3.8243,1804.5,1804.1,32.7863]
[1743419599734,3.0,1804.5,1804.1,38.32899]
[1743419599932,14.08372,1804.5,1804.1,38.32899]
[1743419600136,5.54211,1804.4,1804.1,37.8741205]
[1743419600608,11.08432,1804.4,1804.1,37.8741205]
[1743419601225,11.08429,1804.4,1804.1,37.8741205]
[1743419602112,3.0,1804.5,1804.1,37.8741205]
[1743419602416,3.0,1804.5,1804.3,5.54216]
[1743419602722,3.0,1804.5,1804.2,5.54248]
[1743419602723,3.0,1804.5,1804.2,15.73248]
[1743419602920,3.0,1804.5,1804.2,17.939352]
[1743419603111,8.54175,1804.5,1804.2,12.396872]
[1743419603311,8.54175,1804.5,1804.2,17.939482]
[1743419603531,8.54175,1804.5,1804.3,0.755]
[1743419603740,14.08363,1804.5,1804.3,0.755]
[1743419603952,8.54175,1804.5,1804.3,0.755]
[1743419604119,14.0836,1804.5,1804.3,0.755]
[1743419604324,8.54175,1804.5,1804.3,0.755]
[1743419604637,3.0,1804.5,1804.3,2.0701872]
[1743419605030,5.542,1804.4,1804.3,2.0701872]
[1743419605535,5.542,1804.4,1804.3,2.34261113]
[1743419605743,5.542,1804.4,1804.3,0.27242393]
[1743419606249,12.53885898,1804.6,1804.3,0.27242393]
[1743419606440,5.54179,1804.5,1804.3,0.27242393]
[1743419606757,11.08373,1804.5,1804.3,0.27242393]
[1743419606959,5.542,1804.4,1804.3,0.27242393]
[1743419608857,5.54234,1804.3,1804.1,42.9653]
[1743419609156,5.54234,1804.3,1804.1,48.375132]
[1743419609359,5.542,1804.4,1804.1,48.375132]
[1743419609557,5.54236,1804.3,1804.1,42.9653]
[1743419610063,5.542,1804.4,1804.1,42.9653]
[1743419610263,11.08416,1804.4,1804.1,48.50821]
[1743419611155,5.54177,1804.5,1804.1,48.50821]
[1743419611562,12.53888898,1804.6,1804.2,5.54245]
[1743419611723,5.54201,1804.4,1804.1,63.00817]
[1743419611925,5.54201,1804.4,1804.1,68.60210617]
[1743419613862,5.54174,1804.5,1804.2,5.54258]
[1743419614061,11.08359,1804.5,1804.2,5.54258]
[1743419614265,11.08359,1804.5,1804.2,20.04258]
[1743419614425,11.08359,1804.5,1804.2,30.23258]
[1743419614762,5.54211,1804.4,1804.2,24.69]
[1743419614947,5.54211,1804.4,1804.2,11.89075633]
[1743419615146,5.54211,1804.4,1804.2,10.19]
[1743419615324,11.08374,1804.5,1804.2,10.19]
[1743419615937,5.54174,1804.5,1804.2,15.73257]
[1743419616262,11.08358,1804.5,1804.2,10.19]
[1743419616563,5.54202,1804.4,1804.2,10.19]
[1743419617961,11.08359,1804.5,1804.2,15.73261]
[1743419619358,5.54174,1804.5,1804.2,15.73261]
[1743419619559,5.54174,1804.5,1804.2,21.32654617]
[1743419619927,11.0836,1804.5,1804.2,21.32654617]
[1743419620366,11.0836,1804.5,1804.3,0.27446031]
[1743419622268,5.542,1804.4,1804.3,0.27446031]
[1743419622752,12.47562898,1804.4,1804.3,0.27446031]
[1743419623062,5.54262,1804.2,1804.1,31.979]
[1743419623262,8.72224898,1804.2,1804.1,32.22977678]
[1743419623664,12.49794898,1804.2,1804.1,32.22977678]
[1743419624638,12.49794898,1804.2,1804.1,0.25077678]
[1743419624872,5.54404,1803.8,1803.7,5.587]
[1743419625072,5.54404,1803.8,1803.7,5.83777678]
[1743419627350,5.54329,1804.0,1803.7,6.42155446]
[1743419627551,3.0,1804.0,1803.8,0.819]
[1743419627878,3.0,1804.1,1803.8,0.819]
[1743419628081,8.54274,1804.2,1803.9,5.79421678]
[1743419628268,8.54274,1804.2,1803.9,17.19991746]
[1743419628465,3.0,1804.2,1803.9,31.69988746]
[1743419628644,3.0,1804.2,1804.0,0.8026]
[1743419629058,3.0,1804.2,1804.1,0.25077678]
[1743419629953,8.54262,1804.2,1804.1,0.25077678]
[1743419630279,8.54262,1804.2,1804.1,5.83777678]
[1743419630470,12.50064898,1804.2,1804.1,5.83777678]
[1743419631178,11.72224898,1804.2,1804.1,5.83777678]
[1743419636190,9.50773898,1804.5,1804.1,6.65597678]
[1743419636350,8.72133898,1804.5,1804.2,5.5426]
[1743419636558,5.54171,1804.5,1804.2,5.5426]
[1743419636985,8.72110898,1804.6,1804.2,5.5426]
[1743419636986,8.72110898,1804.6,1804.3,0.25077678]
[1743419637156,14.26277898,1804.6,1804.3,0.25077678]
[1743419637359,5.54172,1804.5,1804.3,0.25077678]
[1743419637559,5.54172,1804.5,1804.3,0.83010646]
[1743419637760,14.26277898,1804.6,1804.3,0.83010646]
[1743419638063,14.26277898,1804.6,1804.3,0.25077678]
[1743419638064,5.54179,1804.5,1804.3,0.25077678]
[1743419638988,14.26328898,1804.5,1804.3,0.25077678]
[1743419639393,8.72141898,1804.5,1804.1,17.49085]
[1743419639550,8.72141898,1804.5,1804.4,0.25211551]
[1743419639750,8.72141898,1804.5,1804.1,17.49085]
[1743419639980,8.72141898,1804.5,1804.4,0.25211551]
[1743419640187,8.72141898,1804.5,1804.2,5.54258]
[1743419640380,8.72141898,1804.5,1804.4,0.25211551]
[1743419640576,8.72141898,1804.5,1804.2,5.54258]
[1743419640775,8.72141898,1804.5,1804.4,0.25211551]
[1743419640977,14.26330898,1804.5,1804.2,15.73258]
[1743419641154,8.72141898,1804.5,1804.4,0.25211551]
[1743419641355,8.72141898,1804.5,1804.2,15.73258]
[1743419641590,8.72141898,1804.5,1804.4,0.25183856]
[1743419641789,14.26338898,1804.5,1804.3,0.2517924]
[1743419641959,8.72141898,1804.5,1804.2,10.19]
[1743419642159,8.72141898,1804.5,1804.4,0.2517924]
[1743419642372,14.26332898,1804.5,1804.2,10.19]
[1743419642719,14.26332898,1804.5,1804.3,0.25183856]
[1743419643296,8.72141898,1804.5,1804.3,0.25183856]
[1743419643790,5.542,1804.4,1804.3,0.25183856]
[1743419644091,12.49872898,1804.4,1804.3,0.25183856]
[1743419644291,13.72248791,1804.4,1804.3,5.99e-06]
[1743419644489,5.54397,1803.8,1803.5,0.8226]
[1743419644681,5.54418,1803.7,1803.6,0.19094716]
[1743419644987,5.54397,1803.8,1803.6,0.19094716]
[1743419645366,5.54357,1803.9,1803.6,0.19094716]
[1743419645571,5.54357,1803.9,1803.6,5.73530716]
[1743419645773,5.54357,1803.9,1803.6,0.24638716]
[1743419646086,5.54357,1803.9,1803.6,0.19094716]
[1743419646287,5.54415,1803.7,1803.6,0.19094716]
[1743419646696,8.72377898,1803.7,1803.6,5.77494716]
[1743419648584,5.54415,1803.7,1803.6,5.77494716]
[1743419648783,15.09629898,1803.8,1803.6,5.77494716]
[1743419649187,5.54415,1803.7,1803.6,5.77494716]
[1743419650704,5.54385,1803.8,1803.6,5.77494716]
[1743419651018,3.0,1803.8,1803.6,12.09230716]
[1743419651201,3.0,1803.8,1803.6,17.63667716]
[1743419651400,5.54271,1804.2,1803.8,5.54361]
[1743419651590,5.54271,1804.2,1803.9,6.870771]
[1743419651907,8.72233898,1804.2,1804.0,5.584]
[1743419652092,5.54292,1804.1,1804.0,5.584]
[1743419653609,8.72254898,1804.1,1804.0,5.584]
[1743419654596,14.26508898,1804.2,1804.0,5.584]
[1743419655719,5.54292,1804.1,1804.0,5.584]
[1743419656988,3.17962898,1804.2,1804.0,5.584]
[1743419657236,3.0,1804.2,1804.0,5.584]
[1743419657540,5.54265,1804.2,1804.0,7.251085]
[1743419657841,5.54265,1804.2,1804.0,5.584]
[1743419659132,11.08485,1804.3,1804.0,11.12722]
[1743419659303,11.08485,1804.3,1804.0,5.584]
[1743419659500,5.54267,1804.2,1804.0,5.584]
[1743419659706,5.54267,1804.2,1804.0,5.583]
[1743419660228,11.0849,1804.3,1804.0,5.583]
[1743419660428,5.54268,1804.2,1804.0,5.583]
[1743419661213,9.83080998,1804.2,1804.0,5.583]
[1743419661551,5.54292,1804.1,1804.0,5.583]
[1743419661725,14.26507898,1804.2,1804.0,5.583]
[1743419661927,3.17962898,1804.2,1804.0,5.583]
[1743419663039,5.54233,1804.3,1804.0,11.12621]
[1743419663353,5.54233,1804.3,1804.1,0.7664]
[1743419663755,11.08479,1804.3,1804.1,0.7664]
[1743419663918,11.08481,1804.3,1804.1,0.7664]
[1743419665351,8.54233,1804.3,1804.2,0.19338529]
[1743419669924,14.26398898,1804.4,1804.2,0.19338529]
[1743419670120,8.72174898,1804.4,1804.2,0.19338529]
[1743419670321,14.26337898,1804.5,1804.2,0.19338529]
[1743419670527,11.08363,1804.5,1804.2,5.73598529]
[1743419671059,5.54176,1804.5,1804.2,5.73598529]
[1743419672553,8.72138898,1804.5,1804.2,0.19338529]
[1743419672785,5.54209,1804.4,1804.2,0.19338529]
[1743419673071,14.26336898,1804.5,1804.2,0.19338529]
[1743419673754,5.54204,1804.4,1804.2,0.19338529]
[1743419674866,8.72138898,1804.5,1804.2,0.19338529]
[1743419675058,11.08419,1804.4,1804.2,0.19338529]
[1743419675259,5.54231,1804.3,1804.2,0.19338529]
[1743419675647,14.26379898,1804.4,1804.2,0.19338529]
[1743419676167,8.72165898,1804.4,1804.2,0.19338529]
[1743419677366,5.54231,1804.3,1804.2,0.19338529]
[1743419677671,9.48035898,1804.4,1804.2,0.19338529]
[1743419677870,15.02253898,1804.4,1804.2,0.19338529]
[1743419678058,9.48035898,1804.4,1804.2,0.19338529]
[1743419678260,8.72165898,1804.4,1804.2,0.19338529]
[1743419678559,14.26381898,1804.4,1804.2,0.19338529]
[1743419678872,8.72165898,1804.4,1804.2,0.19338529]
[1743419681183,14.26381898,1804.4,1804.2,0.19338529]
[1743419681876,8.72165898,1804.4,1804.2,0.19338529]
[1743419683185,5.54175,1804.5,1804.2,5.73593529]
[1743419683353,5.54175,1804.5,1804.2,6.49373529]
[1743419683677,0.9027,1804.7,1804.2,3.17383782]
[1743419683973,0.1,1804.7,1804.4,5.54185]
[1743419684163,5.64119,1804.7,1804.5,5.578]
[1743419684368,11.1825,1804.7,1804.5,5.76963311]
[1743419684562,5.64119,1804.7,1804.5,5.76963311]
[1743419684762,8.82081898,1804.7,1804.5,5.76963311]
[1743419684978,5.64119,1804.7,1804.5,5.76963311]
[1743419685455,0.1,1804.7,1804.6,6.30979]
[1743419685859,0.1,1804.7,1804.6,6.50142311]
[1743419687255,0.1,1804.7,1804.6,16.74683288]
[1743419687568,0.1,1804.7,1804.6,16.69142311]
[1743419687767,0.1,1804.7,1804.6,19.58564425]
[1743419689901,0.1,1804.7,1804.6,34.08564425]
[1743419691097,0.1,1804.7,1804.6,19.58564425]
[1743419693098,0.1,1804.7,1804.6,19.99781356]
[1743419693388,0.1,1804.7,1804.6,21.12767554]
[1743419695064,0.1,1804.7,1804.6,35.62767554]
[1743419696292,0.1,1804.7,1804.6,20.71550623]
[1743419696497,0.1,1804.7,1804.6,26.28950623]
[1743419699308,0.1,1804.7,1804.6,58.25250623]
[1743419699825,0.1,1804.7,1804.6,43.47449509]
[1743419699982,3.27962898,1804.7,1804.6,38.85749509]
[1743419700182,6.47148,1804.7,1804.6,38.85749509]
[1743419700719,9.65110898,1804.7,1804.6,38.85749509]
[1743419701029,9.65110898,1804.7,1804.6,33.28449509]
[1743419701327,6.47148,1804.7,1804.6,33.28449509]
[1743419701781,9.65110898,1804.7,1804.6,33.28449509]
[1743419701987,17.89992886,1804.7,1804.6,0.19163311]
[1743419702189,6.34311,1804.3,1804.2,5.573]
[1743419702382,0.8008,1804.3,1804.2,5.573]
[1743419702884,9.52153898,1804.5,1804.2,5.573]
[1743419703089,16.56983488,1804.5,1804.2,5.573]
[1743419703698,5.54202,1804.4,1804.2,5.573]
[1743419705722,11.02776488,1804.5,1804.2,5.573]
[1743419705723,16.56974488,1804.5,1804.2,5.573]
[1743419706091,11.02776488,1804.5,1804.2,5.573]
[1743419706291,10.8481559,1804.5,1804.2,11.11552]
[1743419706492,8.54176,1804.5,1804.2,11.11552]
[1743419706698,3.0,1804.5,1804.2,11.94356]
[1743419707031,6.4608,1804.7,1804.4,5.54191]
[1743419707200,8.72103898,1804.6,1804.4,10.19]
[1743419707405,8.72132898,1804.5,1804.4,10.19]
[1743419707794,9.68511288,1804.6,1804.4,10.19]
[1743419707995,3.9640739,1804.6,1804.4,10.19]
[1743419708305,3.0,1804.6,1804.4,10.19]
[1743419708631,8.54146,1804.6,1804.4,10.19]
[1743419708824,5.5417,1804.5,1804.4,10.19]
[1743419709131,9.52972898,1804.5,1804.4,10.19]
[1743419709831,9.52972898,1804.5,1804.4,10.36607812]
[1743419711098,3.98802898,1804.5,1804.4,0.17607812]
[1743419711295,8.54142,1804.6,1804.3,5.54209]
[1743419711603,3.0,1804.6,1804.4,5.71805812]
[1743419712899,3.0,1804.6,1804.4,0.17607812]
[1743419713423,3.0,1804.6,1804.4,5.71777812]
[1743419713826,3.0,1804.6,1804.4,0.17607812]
[1743419715238,8.54139,1804.6,1804.4,0.17607812]
[1743419715600,8.72132898,1804.5,1804.4,0.17607812]
[1743419715897,9.53442898,1804.5,1804.4,5.572]
[1743419716100,9.53442898,1804.5,1804.4,5.74807812]
[1743419716524,3.99272898,1804.5,1804.4,5.74807812]
[1743419716731,3.17962898,1804.5,1804.4,5.74807812]
[1743419716944,3.0,1804.6,1804.4,5.74807812]
[1743419717127,3.0,1804.6,1804.4,11.28998812]
[1743419717315,8.54142,1804.6,1804.4,5.74807812]
[1743419717874,5.5417,1804.5,1804.4,5.74807812]
[1743419718748,14.08304,1804.6,1804.4,5.74807812]
[1743419718943,5.5417,1804.5,1804.4,5.74807812]
[1743419719146,8.72132898,1804.5,1804.4,5.74807812]
[1743419719346,9.3216,1804.5,1804.4,0.17607812]
[1743419719554,6.30891,1804.3,1804.2,15.761]
[1743419719751,8.13133398,1804.3,1804.2,0.17414443]
[1743419720046,6.30983,1804.0,1803.9,37.534]
[1743419720240,3.94622898,1804.0,1803.9,37.534]
[1743419720404,9.48945898,1804.0,1803.9,37.534]
[1743419720603,0.7666,1804.0,1803.9,37.534]
[1743419720845,6.30983,1804.0,1803.9,37.534]
[1743419721240,0.7666,1804.0,1803.9,37.534]
[1743419721408,6.30983,1804.0,1803.9,37.534]
[1743419722035,9.48945898,1804.0,1803.9,37.534]
[1743419723329,10.99270988,1804.0,1803.9,31.963]
[1743419725363,10.99270988,1804.0,1803.9,32.13981533]
[1743419727054,5.54305,1804.1,1803.9,32.13981533]
[1743419727055,8.54305,1804.1,1803.9,46.63981533]
[1743419727465,3.0,1804.1,1803.9,46.63981533]
[1743419727624,3.0,1804.1,1803.9,52.18328533]
[1743419728036,8.54296,1804.1,1803.9,46.63981533]
[1743419728256,17.26567898,1804.1,1803.9,46.63981533]
[1743419728555,17.26576898,1804.1,1803.9,32.13981533]
[1743419728714,11.72258898,1804.1,1803.9,32.13981533]
[1743419729155,11.72258898,1804.1,1803.9,0.17681533]
[1743419729368,17.26567898,1804.1,1803.9,0.17681533]
[1743419729530,11.72258898,1804.1,1803.9,0.17681533]
[1743419729733,11.72258898,1804.1,1803.7,17.46183]
[1743419729734,11.72258898,1804.1,1803.8,5.54383]
[1743419729930,6.17962898,1804.1,1803.9,0.17667714]
[1743419730131,3.0,1804.1,1803.9,0.17667714]
[1743419730342,8.54306,1804.1,1803.9,0.17667714]
[1743419730740,14.08615,1804.1,1803.7,22.10772]
[1743419730953,14.08615,1804.1,1803.8,0.17667714]
[1743419731157,5.54354,1803.9,1803.8,0.17667714]
[1743419731327,5.54354,1803.9,1803.8,0.3607212]
[1743419731731,15.07467898,1804.0,1803.8,0.3607212]
[1743419731943,9.53116898,1804.0,1803.8,0.3607212]
[1743419732266,5.54354,1803.9,1803.8,0.3607212]
[1743419732427,7.0510039,1803.9,1803.8,0.3607212]
[1743419732897,10.2696179,1804.1,1803.8,0.3607212]
[1743419733028,13.44924688,1804.1,1803.8,0.3607212]
[1743419733227,18.99239688,1804.1,1803.8,0.3607212]
[1743419733926,5.54327,1804.0,1803.8,0.3607212]
[1743419734129,11.08666,1804.0,1803.8,0.3607212]
[1743419734453,9.54836898,1803.9,1803.8,0.3607212]
[1743419735335,8.54415,1803.7,1803.6,31.978]
[1743419735542,12.50597898,1803.7,1803.6,32.31094162]
[1743419738165,13.05597898,1803.7,1803.6,32.31094162]
[1743419738368,15.51226697,1803.7,1803.6,32.31094162]
[1743419738532,14.96226697,1803.7,1803.6,32.31094162]
[1743419738733,15.51226697,1803.7,1803.6,32.31094162]
[1743419739373,14.96226697,1803.7,1803.6,32.31094162]
[1743419739558,12.50597898,1803.7,1803.6,32.31094162]
[1743419741058,11.72377898,1803.7,1803.6,32.31094162]
[1743419742544,13.06737898,1803.7,1803.6,32.31094162]
[1743419743558,13.06737898,1803.7,1803.6,0.33294162]
[1743419743758,3.0,1803.6,1803.3,5.57]
[1743419743938,5.54508,1803.4,1803.3,5.57]
[1743419744149,5.54505,1803.5,1803.3,5.57]
[1743419744352,11.09001,1803.5,1803.3,5.57]
[1743419744788,8.72470898,1803.4,1803.3,5.57]
[1743419745291,5.54569,1803.2,1803.1,10.19]
[1743419745596,5.54661,1803.0,1802.8,0.7759]
[1743419745885,5.54661,1803.0,1802.6,15.73744]
[1743419745886,8.72623898,1803.0,1802.6,27.63073]
[1743419746059,5.54661,1803.0,1802.7,5.54722]
[1743419746391,8.72534898,1803.2,1802.9,0.7623]
[1743419746551,5.54609,1803.1,1802.9,0.7623]
[1743419747484,3.0,1803.4,1803.1,5.54591]
[1743419747649,3.0,1803.4,1803.2,0.7547]
[1743419747983,8.54512,1803.4,1803.2,0.7547]
[1743419748155,3.0,1803.4,1803.2,0.7547]
[1743419748351,3.0,1803.4,1803.2,6.30037]
[1743419748662,3.0,1803.4,1803.2,0.7547]
[1743419748862,3.0,1803.4,1803.2,6.30036]
[1743419749486,5.54543,1803.3,1803.0,11.11619]
[1743419749693,11.72497898,1803.4,1803.0,16.66238]
[1743419749856,11.72485898,1803.4,1803.1,0.7948]
[1743419750053,8.54523,1803.4,1803.1,0.7948]
[1743419750371,8.54513,1803.4,1803.1,6.3407]
[1743419750693,11.72475898,1803.4,1803.1,0.7948]
[1743419750896,8.54513,1803.4,1803.1,6.3407]
[1743419751192,3.0,1803.4,1803.1,11.94205355]
[1743419751354,3.0,1803.4,1803.2,5.54563]
[1743419752095,8.54518,1803.4,1803.1,6.3407]
[1743419752407,17.27009898,1803.4,1803.1,10.9848]
[1743419752600,5.54569,1803.2,1803.1,15.76]
[1743419752752,5.54548,1803.3,1803.1,15.76]